[Event "Titled Tuesday Blitz October 18 Late 2022"]
[White "Jimenez Jimenez, Leandro"]
[Black "Hemam, Moulaye Brahim"]
[WhiteFideId "6415253"]
[BlackFideId "19600054"]
[WhiteElo "2217"]
[BlackElo "2088"]
[Result "0-1"]
[Round "08"]
[TimeControl "180+1"]
[Date "2022.10.19"]
[WhiteClock "0:01:10"]
[BlackClock "0:00:31"]

1. d4 {[%clk 0:03:00]}  Nf6 {[%clk 0:02:58]} 2. c4 {[%clk 0:03:01]}  g6 {[%clk 0:02:57]} 3. Nc3 {[%clk 0:03:01]}  d5 {[%clk 0:02:57]} 4. Nf3 {[%clk 0:02:58]}  Bg7 {[%clk 0:02:57]} 5. Qb3 {[%clk 0:02:58]}  dxc4 {[%clk 0:02:56]} 6. Qxc4 {[%clk 0:02:59]}  O-O {[%clk 0:02:56]} 7. e4 {[%clk 0:02:59]}  a6 {[%clk 0:02:56]} 8. e5 {[%clk 0:02:57]}  b5 {[%clk 0:02:56]} 9. Qb3 {[%clk 0:02:57]}  Be6 {[%clk 0:02:54]} 10. Qc2 {[%clk 0:02:58]}  Nd5 {[%clk 0:02:53]} 11. Be2 {[%clk 0:02:58]}  c5 {[%clk 0:02:50]} 12. Nxd5 {[%clk 0:02:52]}  Qxd5 {[%clk 0:02:46]} 13. Qxc5 {[%clk 0:02:46]}  Qxc5 {[%clk 0:02:46]} 14. dxc5 {[%clk 0:02:47]}  Nd7 {[%clk 0:02:46]} 15. Be3 {[%clk 0:02:43]}  Nxe5 {[%clk 0:02:45]} 16. O-O {[%clk 0:02:43]}  Nc4 {[%clk 0:02:32]} 17. Bd4 {[%clk 0:02:39]}  Nxb2 {[%clk 0:02:22]} 18. Rac1 {[%clk 0:02:32]}  Nc4 {[%clk 0:02:13]} 19. a4 {[%clk 0:02:28]}  Bd5 {[%clk 0:02:03]} 20. Rfd1 {[%clk 0:02:26]}  Rfd8 {[%clk 0:01:53]} 21. axb5 {[%clk 0:02:22]}  axb5 {[%clk 0:01:52]} 22. Be5 {[%clk 0:02:17]}  Nxe5 {[%clk 0:01:43]} 23. Nxe5 {[%clk 0:02:06]}  Bxe5 {[%clk 0:01:42]} 24. Bxb5 {[%clk 0:02:07]}  e6 {[%clk 0:01:36]} 25. g3 {[%clk 0:02:02]}  Bf3 {[%clk 0:01:33]} 26. Re1 {[%clk 0:02:01]}  Bd4 {[%clk 0:01:28]} 27. c6 {[%clk 0:01:58]}  Rac8 {[%clk 0:01:28]} 28. Rc4 {[%clk 0:01:55]}  Bg7 {[%clk 0:01:22]} 29. Ba4 {[%clk 0:01:51]}  Rc7 {[%clk 0:01:18]} 30. Re3 {[%clk 0:01:49]}  Bd5 {[%clk 0:01:17]} 31. Rc2 {[%clk 0:01:43]}  Ra8 {[%clk 0:01:12]} 32. Bb5 {[%clk 0:01:34]}  Ra1+ {[%clk 0:01:08]} 33. Bf1 {[%clk 0:01:34]}  Rxc6 {[%clk 0:01:07]} 34. Rxc6 {[%clk 0:01:30]}  Bxc6 {[%clk 0:01:07]} 35. Rb3 {[%clk 0:01:27]}  Bf6 {[%clk 0:01:00]} 36. f3 {[%clk 0:01:24]}  Bd5 {[%clk 0:00:58]} 37. Rb8+ {[%clk 0:01:20]}  Kg7 {[%clk 0:00:57]} 38. Kg2 {[%clk 0:01:20]}  Bxf3+ {[%clk 0:00:56]} 39. Kxf3 {[%clk 0:01:21]}  Rxf1+ {[%clk 0:00:55]} 40. Kg2 {[%clk 0:01:21]}  Rd1 {[%clk 0:00:54]} 41. h4 {[%clk 0:01:20]}  h5 {[%clk 0:00:54]} 42. Kf3 {[%clk 0:01:20]}  Rd3+ {[%clk 0:00:52]} 43. Kf2 {[%clk 0:01:19]}  Rxg3 {[%clk 0:00:50]} 44. Rb4 {[%clk 0:01:19]}  Rg4 {[%clk 0:00:50]} 45. Rb5 {[%clk 0:01:19]}  Bxh4+ {[%clk 0:00:49]} 46. Kf3 {[%clk 0:01:19]}  Bf6 {[%clk 0:00:48]} 47. Ra5 {[%clk 0:01:18]}  Rg5 {[%clk 0:00:49]} 48. Ra4 {[%clk 0:01:17]}  h4 {[%clk 0:00:48]} 49. Kf4 {[%clk 0:01:12]}  h3 {[%clk 0:00:46]} 50. Ra3 {[%clk 0:01:08]}  h2 {[%clk 0:00:44]} 51. Rh3 {[%clk 0:01:08]}  Rh5 {[%clk 0:00:44]} 52. Rxh2 {[%clk 0:01:08]}  Rxh2 {[%clk 0:00:43]} 53. Kg4 {[%clk 0:01:09]}  Rh5 {[%clk 0:00:43]} 54. Kg3 {[%clk 0:01:10]}  Rh4 {[%clk 0:00:39]} 55. Kf3 {[%clk 0:01:05]}  g5 {[%clk 0:00:39]} 56. Kg3 {[%clk 0:01:06]}  Kg6 {[%clk 0:00:39]} 57. Kf3 {[%clk 0:01:07]}  Kf5 {[%clk 0:00:39]} 58. Kg3 {[%clk 0:01:07]}  g4 {[%clk 0:00:37]} 59. Kg2 {[%clk 0:01:07]}  Kf4 {[%clk 0:00:36]} 60. Kf2 {[%clk 0:01:06]}  Rh2+ {[%clk 0:00:35]} 61. Kg1 {[%clk 0:01:05]}  Rc2 {[%clk 0:00:34]} 62. Kf1 {[%clk 0:01:06]}  Ke3 {[%clk 0:00:34]} 63. Kg1 {[%clk 0:01:07]}  Be5 {[%clk 0:00:33]} 64. Kf1 {[%clk 0:01:08]}  Bf4 {[%clk 0:00:33]} 65. Kg1 {[%clk 0:01:09]}  Kf3 {[%clk 0:00:32]} 66. Kf1 {[%clk 0:01:10]}  Rc1# {[%clk 0:00:31]} 0-1


[Site "https://www.chess.com"]

[Event "Titled Tuesday Blitz October 18 Late 2022"]
[White "Kaganskiy, Gleb"]
[Black "Malka, Samuel"]
[WhiteFideId "4132025"]
[BlackFideId "20643675"]
[WhiteElo "2165"]
[BlackElo "2450"]
[Result "1-0"]
[Round "08"]
[TimeControl "180+1"]
[Date "2022.10.19"]
[WhiteClock "0:00:37"]
[BlackClock "0:00:07"]

1. e4 {[%clk 0:03:00]}  c5 {[%clk 0:02:56]} 2. Nf3 {[%clk 0:02:58]}  Nc6 {[%clk 0:02:56]} 3. d4 {[%clk 0:02:58]}  cxd4 {[%clk 0:02:57]} 4. Nxd4 {[%clk 0:02:58]}  Nf6 {[%clk 0:02:57]} 5. Nc3 {[%clk 0:02:58]}  e5 {[%clk 0:02:57]} 6. Ndb5 {[%clk 0:02:58]}  d6 {[%clk 0:02:56]} 7. a4 {[%clk 0:02:58]}  a6 {[%clk 0:02:32]} 8. Na3 {[%clk 0:02:56]}  Bg4 {[%clk 0:02:32]} 9. f3 {[%clk 0:02:55]}  Be6 {[%clk 0:02:24]} 10. Bc4 {[%clk 0:02:55]}  Rc8 {[%clk 0:02:21]} 11. Bg5 {[%clk 0:02:49]}  Na5 {[%clk 0:01:31]} 12. Bd5 {[%clk 0:02:43]}  Qb6 {[%clk 0:01:27]} 13. Bxf6 {[%clk 0:02:41]}  gxf6 {[%clk 0:01:22]} 14. Qc1 {[%clk 0:02:40]}  h5 {[%clk 0:01:11]} 15. Rb1 {[%clk 0:02:26]}  Bh6 {[%clk 0:01:11]} 16. Qd1 {[%clk 0:02:23]}  Rg8 {[%clk 0:01:08]} 17. Qe2 {[%clk 0:02:22]}  Be3 {[%clk 0:00:55]} 18. g3 {[%clk 0:02:11]}  Bd4 {[%clk 0:00:54]} 19. Kf1 {[%clk 0:01:59]}  Qc5 {[%clk 0:00:52]} 20. f4 {[%clk 0:01:39]}  Bg4 {[%clk 0:00:45]} 21. Qd3 {[%clk 0:01:36]}  h4 {[%clk 0:00:41]} 22. Kg2 {[%clk 0:01:35]}  h3+ {[%clk 0:00:38]} 23. Kf1 {[%clk 0:01:34]}  Bxc3 {[%clk 0:00:30]} 24. Qxc3 {[%clk 0:01:29]}  Qxc3 {[%clk 0:00:23]} 25. bxc3 {[%clk 0:01:29]}  Rxc3 {[%clk 0:00:23]} 26. Bb3 {[%clk 0:01:16]}  exf4 {[%clk 0:00:20]} 27. gxf4 {[%clk 0:01:15]}  Bf3 {[%clk 0:00:20]} 28. Rg1 {[%clk 0:01:12]}  Rg2 {[%clk 0:00:20]} 29. Rxg2 {[%clk 0:01:11]}  hxg2+ {[%clk 0:00:19]} 30. Kg1 {[%clk 0:01:06]}  Nxb3 {[%clk 0:00:18]} 31. Rxb3 {[%clk 0:01:01]}  Rxb3 {[%clk 0:00:18]} 32. cxb3 {[%clk 0:01:01]}  Bxe4 {[%clk 0:00:18]} 33. Nc4 {[%clk 0:00:55]}  Ke7 {[%clk 0:00:17]} 34. Ne3 {[%clk 0:00:52]}  d5 {[%clk 0:00:15]} 35. Nxg2 {[%clk 0:00:52]}  Bc2 {[%clk 0:00:15]} 36. a5 {[%clk 0:00:47]}  Bxb3 {[%clk 0:00:15]} 37. Kf2 {[%clk 0:00:47]}  d4 {[%clk 0:00:16]} 38. Ke2 {[%clk 0:00:44]}  Bc2 {[%clk 0:00:16]} 39. Ne1 {[%clk 0:00:44]}  Be4 {[%clk 0:00:11]} 40. Nf3 {[%clk 0:00:43]}  d3+ {[%clk 0:00:05]} 41. Ke3 {[%clk 0:00:44]}  Bxf3 {[%clk 0:00:05]} 42. Kxf3 {[%clk 0:00:44]}  Ke6 {[%clk 0:00:05]} 43. h4 {[%clk 0:00:40]}  Kf5 {[%clk 0:00:06]} 44. h5 {[%clk 0:00:40]}  d2 {[%clk 0:00:06]} 45. Ke2 {[%clk 0:00:40]}  Kxf4 {[%clk 0:00:06]} 46. h6 {[%clk 0:00:39]}  Ke4 {[%clk 0:00:06]} 47. h7 {[%clk 0:00:39]}  f5 {[%clk 0:00:07]} 48. h8=Q {[%clk 0:00:37]} 1-0


[Site "https://www.chess.com"]

[Event "Titled Tuesday Blitz October 18 Late 2022"]
[White "Kamsky, Gata"]
[Black "Deac, Bogdan-Daniel"]
[WhiteFideId "2000024"]
[BlackFideId "1226380"]
[WhiteElo "2666"]
[BlackElo "2648"]
[Result "0-1"]
[Round "08"]
[TimeControl "180+1"]
[Date "2022.10.18"]
[WhiteClock "0:00:06"]
[BlackClock "0:00:06"]

1. e4 {[%clk 0:03:00]}  c6 {[%clk 0:03:00]} 2. d3 {[%clk 0:02:53]}  d5 {[%clk 0:03:00]} 3. Nf3 {[%clk 0:02:53]}  Qc7 {[%clk 0:03:00]} 4. Nc3 {[%clk 0:02:51]}  dxe4 {[%clk 0:02:53]} 5. dxe4 {[%clk 0:02:49]}  e5 {[%clk 0:02:53]} 6. Bc4 {[%clk 0:02:49]}  h6 {[%clk 0:02:52]} 7. a4 {[%clk 0:02:47]}  Nf6 {[%clk 0:02:50]} 8. O-O {[%clk 0:02:47]}  Bb4 {[%clk 0:02:50]} 9. Bd2 {[%clk 0:02:42]}  a5 {[%clk 0:02:49]} 10. Qe2 {[%clk 0:02:21]}  O-O {[%clk 0:02:42]} 11. Nh4 {[%clk 0:02:14]}  Re8 {[%clk 0:02:36]} 12. Rfd1 {[%clk 0:02:08]}  Na6 {[%clk 0:02:24]} 13. Na2 {[%clk 0:01:25]}  Bf8 {[%clk 0:01:55]} 14. Nc1 {[%clk 0:01:18]}  Nc5 {[%clk 0:01:48]} 15. f3 {[%clk 0:01:18]}  g5 {[%clk 0:01:31]} 16. Nf5 {[%clk 0:01:13]}  Bxf5 {[%clk 0:01:30]} 17. exf5 {[%clk 0:01:13]}  e4 {[%clk 0:01:30]} 18. Nb3 {[%clk 0:01:09]}  exf3 {[%clk 0:01:16]} 19. Qxf3 {[%clk 0:01:08]}  Nce4 {[%clk 0:01:17]} 20. Be1 {[%clk 0:00:47]}  Bd6 {[%clk 0:00:53]} 21. g3 {[%clk 0:00:39]}  Be5 {[%clk 0:00:52]} 22. Rab1 {[%clk 0:00:26]}  g4 {[%clk 0:00:45]} 23. Qf1 {[%clk 0:00:26]}  Ng5 {[%clk 0:00:40]} 24. Be2 {[%clk 0:00:23]}  b6 {[%clk 0:00:34]} 25. Kh1 {[%clk 0:00:23]}  Rad8 {[%clk 0:00:32]} 26. c3 {[%clk 0:00:19]}  h5 {[%clk 0:00:26]} 27. Qg2 {[%clk 0:00:18]}  c5 {[%clk 0:00:19]} 28. Nd2 {[%clk 0:00:17]}  Qe7 {[%clk 0:00:15]} 29. Bb5 {[%clk 0:00:17]}  Rf8 {[%clk 0:00:13]} 30. Nc4 {[%clk 0:00:17]}  Bc7 {[%clk 0:00:12]} 31. Bd2 {[%clk 0:00:15]}  Nf3 {[%clk 0:00:11]} 32. Bh6 {[%clk 0:00:15]}  Rxd1+ {[%clk 0:00:11]} 33. Rxd1 {[%clk 0:00:14]}  Rd8 {[%clk 0:00:12]} 34. Rf1 {[%clk 0:00:13]}  Qe4 {[%clk 0:00:09]} 35. Ne3 {[%clk 0:00:10]}  Kh7 {[%clk 0:00:07]} 36. Qc2 {[%clk 0:00:06]}  Qxc2 {[%clk 0:00:06]} 0-1


[Site "https://www.chess.com"]

[Event "Titled Tuesday Blitz October 18 Late 2022"]
[White "Kanakaris, Georgios"]
[Black "Bordi, Kevin"]
[WhiteFideId "4209460"]
[BlackFideId "621862"]
[WhiteElo "2291"]
[BlackElo "2791"]
[Result "0-1"]
[Round "08"]
[TimeControl "180+1"]
[Date "2022.10.18"]
[WhiteClock "0:00:02"]
[BlackClock "0:00:08"]

1. d4 {[%clk 0:03:00]}  d5 {[%clk 0:03:00]} 2. Nf3 {[%clk 0:03:01]}  Nf6 {[%clk 0:03:00]} 3. c4 {[%clk 0:03:00]}  c6 {[%clk 0:03:00]} 4. e3 {[%clk 0:03:01]}  Bf5 {[%clk 0:03:00]} 5. Bd3 {[%clk 0:03:00]}  Bg6 {[%clk 0:02:59]} 6. O-O {[%clk 0:03:00]}  e6 {[%clk 0:02:59]} 7. Nc3 {[%clk 0:03:00]}  Bd6 {[%clk 0:02:59]} 8. Qe2 {[%clk 0:02:58]}  Ne4 {[%clk 0:02:59]} 9. Nd2 {[%clk 0:02:43]}  f5 {[%clk 0:02:59]} 10. f3 {[%clk 0:02:39]}  Qh4 {[%clk 0:02:57]} 11. f4 {[%clk 0:02:33]}  Bh5 {[%clk 0:02:51]} 12. Nf3 {[%clk 0:02:32]}  Qe7 {[%clk 0:02:44]} 13. Qe1 {[%clk 0:02:28]}  Nd7 {[%clk 0:02:41]} 14. Bxe4 {[%clk 0:02:20]}  fxe4 {[%clk 0:02:40]} 15. Ne5 {[%clk 0:02:19]}  O-O {[%clk 0:02:30]} 16. Nxd7 {[%clk 0:02:07]}  Qxd7 {[%clk 0:02:28]} 17. Qh4 {[%clk 0:02:07]}  Bg6 {[%clk 0:02:24]} 18. Qh3 {[%clk 0:02:01]}  dxc4 {[%clk 0:02:17]} 19. g4 {[%clk 0:01:49]}  c5 {[%clk 0:02:14]} 20. Rd1 {[%clk 0:01:45]}  Qc6 {[%clk 0:01:54]} 21. d5 {[%clk 0:01:29]}  exd5 {[%clk 0:01:52]} 22. Rxd5 {[%clk 0:01:28]}  b5 {[%clk 0:01:43]} 23. Qg2 {[%clk 0:01:17]}  Rae8 {[%clk 0:01:27]} 24. Rd1 {[%clk 0:01:01]}  b4 {[%clk 0:01:26]} 25. Ne2 {[%clk 0:00:55]}  Bc7 {[%clk 0:01:15]} 26. Bd2 {[%clk 0:00:53]}  Rd8 {[%clk 0:01:15]} 27. Be1 {[%clk 0:00:52]}  Rd3 {[%clk 0:01:15]} 28. Rdc1 {[%clk 0:00:50]}  Bf7 {[%clk 0:01:06]} 29. Ng3 {[%clk 0:00:37]}  Bd5 {[%clk 0:00:57]} 30. Nf5 {[%clk 0:00:31]}  Rxf5 {[%clk 0:00:46]} 31. gxf5 {[%clk 0:00:32]}  Rxe3 {[%clk 0:00:46]} 32. Bf2 {[%clk 0:00:26]}  Re2 {[%clk 0:00:40]} 33. Qg4 {[%clk 0:00:27]}  Rxb2 {[%clk 0:00:34]} 34. Rd1 {[%clk 0:00:25]}  e3 {[%clk 0:00:32]} 35. f6 {[%clk 0:00:16]}  exf2+ {[%clk 0:00:26]} 36. Kf1 {[%clk 0:00:17]}  Bg2+ {[%clk 0:00:20]} 37. Qxg2 {[%clk 0:00:17]}  Qxg2+ {[%clk 0:00:20]} 38. Kxg2 {[%clk 0:00:18]}  gxf6 {[%clk 0:00:20]} 39. Rd7 {[%clk 0:00:18]}  Bxf4 {[%clk 0:00:16]} 40. Rad1 {[%clk 0:00:18]}  Be5 {[%clk 0:00:16]} 41. R1d5 {[%clk 0:00:15]}  c3 {[%clk 0:00:12]} 42. Rb7 {[%clk 0:00:15]}  Rd2 {[%clk 0:00:12]} 43. Rxc5 {[%clk 0:00:14]}  Rd8 {[%clk 0:00:07]} 44. Rxb4 {[%clk 0:00:15]}  Kf7 {[%clk 0:00:04]} 45. Rb7+ {[%clk 0:00:15]}  Kg6 {[%clk 0:00:04]} 46. Rb1 {[%clk 0:00:15]}  Rd2 {[%clk 0:00:04]} 47. Ra5 {[%clk 0:00:14]}  c2 {[%clk 0:00:04]} 48. Rf1 {[%clk 0:00:13]}  Bb2 {[%clk 0:00:05]} 49. Rc5 {[%clk 0:00:12]}  c1=Q {[%clk 0:00:05]} 50. Rfxc1 {[%clk 0:00:12]}  Bxc1 {[%clk 0:00:06]} 51. Rxc1 {[%clk 0:00:13]}  Rxa2 {[%clk 0:00:06]} 52. Rc3 {[%clk 0:00:11]}  a5 {[%clk 0:00:07]} 53. h4 {[%clk 0:00:11]}  h5 {[%clk 0:00:07]} 54. Rc5 {[%clk 0:00:12]}  a4 {[%clk 0:00:06]} 55. Ra5 {[%clk 0:00:12]}  Kf7 {[%clk 0:00:06]} 56. Rxh5 {[%clk 0:00:11]}  Rb2 {[%clk 0:00:06]} 57. Ra5 {[%clk 0:00:11]}  Ra2 {[%clk 0:00:06]} 58. Kf1 {[%clk 0:00:10]}  Kg7 {[%clk 0:00:07]} 59. Kg2 {[%clk 0:00:10]}  Kg6 {[%clk 0:00:07]} 60. Kf1 {[%clk 0:00:11]}  f5 {[%clk 0:00:08]} 61. Kg2 {[%clk 0:00:10]}  Kh5 {[%clk 0:00:09]} 62. Rxf5+ {[%clk 0:00:10]}  Kxh4 {[%clk 0:00:09]} 63. Ra5 {[%clk 0:00:11]}  Kg4 {[%clk 0:00:10]} 64. Ra8 {[%clk 0:00:10]}  Kf4 {[%clk 0:00:10]} 65. Rf8+ {[%clk 0:00:09]}  Ke3 {[%clk 0:00:10]} 66. Rf3+ {[%clk 0:00:09]}  Ke4 {[%clk 0:00:09]} 67. Rg3 {[%clk 0:00:09]}  a3 {[%clk 0:00:09]} 68. Rh3 {[%clk 0:00:09]}  Kd4 {[%clk 0:00:09]} 69. Rf3 {[%clk 0:00:08]}  Kc4 {[%clk 0:00:09]} 70. Rf4+ {[%clk 0:00:08]}  Kd5 {[%clk 0:00:10]} 71. Rf3 {[%clk 0:00:07]}  Ke4 {[%clk 0:00:10]} 72. Rg3 {[%clk 0:00:07]}  Kd4 {[%clk 0:00:09]} 73. Kf1 {[%clk 0:00:06]}  Kc4 {[%clk 0:00:08]} 74. Rf3 {[%clk 0:00:06]}  Kb4 {[%clk 0:00:08]} 75. Rf4+ {[%clk 0:00:07]}  Kb3 {[%clk 0:00:08]} 76. Rf3+ {[%clk 0:00:06]}  Kc4 {[%clk 0:00:08]} 77. Rf4+ {[%clk 0:00:05]}  Kd3 {[%clk 0:00:09]} 78. Rf3+ {[%clk 0:00:04]}  Ke4 {[%clk 0:00:09]} 79. Rb3 {[%clk 0:00:04]}  Kd5 {[%clk 0:00:09]} 80. Rf3 {[%clk 0:00:04]}  Kc4 {[%clk 0:00:09]} 81. Rf4+ {[%clk 0:00:05]}  Kb3 {[%clk 0:00:09]} 82. Rf3+ {[%clk 0:00:05]}  Kb2 {[%clk 0:00:08]} 83. Rxf2+ {[%clk 0:00:05]}  Kb1 {[%clk 0:00:08]} 84. Rf7 {[%clk 0:00:04]}  Rb2 {[%clk 0:00:08]} 85. Re7 {[%clk 0:00:01]}  a2 {[%clk 0:00:08]} 86. Re1+ {[%clk 0:00:02]}  Kc2 {[%clk 0:00:08]} 0-1


[Site "https://www.chess.com"]

[Event "Titled Tuesday Blitz October 18 Late 2022"]
[White "Kanter, Eduard"]
[Black "Mazurkiewicz, Michal"]
[WhiteFideId "4103963"]
[BlackFideId "1124943"]
[WhiteElo "2267"]
[BlackElo "2063"]
[Result "0-1"]
[Round "08"]
[TimeControl "180+1"]
[Date "2022.10.19"]
[WhiteClock "0:00:13"]
[BlackClock "0:00:09"]

1. d4 {[%clk 0:03:00]}  Nf6 {[%clk 0:02:59]} 2. c4 {[%clk 0:03:00]}  e5 {[%clk 0:02:59]} 3. dxe5 {[%clk 0:02:59]}  Ng4 {[%clk 0:03:00]} 4. Nh3 {[%clk 0:03:00]}  Nxe5 {[%clk 0:02:49]} 5. e3 {[%clk 0:03:00]}  d5 {[%clk 0:02:49]} 6. Qxd5 {[%clk 0:02:34]}  Qe7 {[%clk 0:02:48]} 7. Nf4 {[%clk 0:02:33]}  c6 {[%clk 0:02:32]} 8. Qd1 {[%clk 0:02:31]}  Bf5 {[%clk 0:02:30]} 9. Be2 {[%clk 0:02:20]}  Nbd7 {[%clk 0:02:30]} 10. Nc3 {[%clk 0:01:15]}  O-O-O {[%clk 0:02:29]} 11. e4 {[%clk 0:01:15]}  Nc5 {[%clk 0:02:25]} 12. Qc2 {[%clk 0:01:13]}  Ned3+ {[%clk 0:01:51]} 13. Nxd3 {[%clk 0:01:07]}  Bxe4 {[%clk 0:01:45]} 14. Nxe4 {[%clk 0:01:01]}  Qxe4 {[%clk 0:01:45]} 15. Nb4 {[%clk 0:00:36]}  Qxg2 {[%clk 0:01:30]} 16. Rf1 {[%clk 0:00:36]}  Ne4 {[%clk 0:01:13]} 17. Nd3 {[%clk 0:00:32]}  Ng5 {[%clk 0:00:37]} 18. Be3 {[%clk 0:00:27]}  Nf3+ {[%clk 0:00:37]} 19. Bxf3 {[%clk 0:00:27]}  Qxf3 {[%clk 0:00:38]} 20. Qe2 {[%clk 0:00:25]}  Qe4 {[%clk 0:00:38]} 21. O-O-O {[%clk 0:00:22]}  Qxc4+ {[%clk 0:00:38]} 22. Kb1 {[%clk 0:00:22]}  Be7 {[%clk 0:00:14]} 23. Bxa7 {[%clk 0:00:20]}  Bf6 {[%clk 0:00:14]} 24. Be3 {[%clk 0:00:17]}  Rd5 {[%clk 0:00:13]} 25. Qc2 {[%clk 0:00:16]}  Qb5 {[%clk 0:00:12]} 26. Nf4 {[%clk 0:00:14]}  Rxd1+ {[%clk 0:00:11]} 27. Rxd1 {[%clk 0:00:15]}  Re8 {[%clk 0:00:11]} 28. Qxh7 {[%clk 0:00:13]}  Qxb2# {[%clk 0:00:09]} 0-1


[Site "https://www.chess.com"]

[Event "Titled Tuesday Blitz October 18 Late 2022"]
[White "Keymer, Vincent"]
[Black "Yuan, Qingyu"]
[WhiteFideId "12940690"]
[BlackFideId "8609772"]
[WhiteElo "2600"]
[BlackElo "2359"]
[Result "1-0"]
[Round "08"]
[TimeControl "180+1"]
[Date "2022.10.18"]
[WhiteClock "0:00:11"]
[BlackClock "0:00:03"]

1. Nf3 {[%clk 0:03:00]}  d5 {[%clk 0:02:59]} 2. e3 {[%clk 0:03:01]}  Nf6 {[%clk 0:02:59]} 3. c4 {[%clk 0:03:00]}  e6 {[%clk 0:02:59]} 4. Nc3 {[%clk 0:03:01]}  Nbd7 {[%clk 0:02:59]} 5. b3 {[%clk 0:03:00]}  Bd6 {[%clk 0:02:59]} 6. Bb2 {[%clk 0:03:00]}  O-O {[%clk 0:02:58]} 7. Be2 {[%clk 0:02:55]}  a6 {[%clk 0:02:45]} 8. O-O {[%clk 0:02:45]}  b6 {[%clk 0:02:42]} 9. a4 {[%clk 0:02:45]}  Bb4 {[%clk 0:02:29]} 10. Na2 {[%clk 0:02:35]}  Bd6 {[%clk 0:02:28]} 11. d4 {[%clk 0:02:31]}  Bb7 {[%clk 0:02:27]} 12. a5 {[%clk 0:02:31]}  c5 {[%clk 0:02:16]} 13. axb6 {[%clk 0:02:29]}  Qxb6 {[%clk 0:02:15]} 14. b4 {[%clk 0:02:29]}  dxc4 {[%clk 0:02:05]} 15. dxc5 {[%clk 0:02:28]}  Bxc5 {[%clk 0:01:43]} 16. Bxf6 {[%clk 0:02:27]}  Nxf6 {[%clk 0:01:40]} 17. bxc5 {[%clk 0:02:28]}  Qxc5 {[%clk 0:01:40]} 18. Qd4 {[%clk 0:02:28]}  Qf5 {[%clk 0:01:29]} 19. Qxc4 {[%clk 0:02:22]}  Rfc8 {[%clk 0:01:28]} 20. Qf4 {[%clk 0:02:20]}  Qg6 {[%clk 0:01:21]} 21. Rfc1 {[%clk 0:02:12]}  h6 {[%clk 0:01:20]} 22. Nb4 {[%clk 0:02:02]}  Rxc1+ {[%clk 0:01:13]} 23. Rxc1 {[%clk 0:02:01]}  a5 {[%clk 0:01:14]} 24. Nd3 {[%clk 0:01:59]}  a4 {[%clk 0:01:10]} 25. Nc5 {[%clk 0:01:38]}  a3 {[%clk 0:00:51]} 26. Bd3 {[%clk 0:01:05]}  Qh5 {[%clk 0:00:35]} 27. Nxb7 {[%clk 0:00:57]}  Qd5 {[%clk 0:00:30]} 28. Qd4 {[%clk 0:00:23]}  Qxb7 {[%clk 0:00:28]} 29. Ra1 {[%clk 0:00:23]}  Qb3 {[%clk 0:00:16]} 30. h3 {[%clk 0:00:17]}  a2 {[%clk 0:00:14]} 31. Nd2 {[%clk 0:00:17]}  Qa3 {[%clk 0:00:09]} 32. Bc4 {[%clk 0:00:17]}  Ra4 {[%clk 0:00:03]} 33. Rxa2 {[%clk 0:00:10]}  Qc1+ {[%clk 0:00:03]} 34. Kh2 {[%clk 0:00:10]}  Rxa2 {[%clk 0:00:02]} 35. Bxa2 {[%clk 0:00:11]}  Kh7 {[%clk 0:00:02]} 36. Nf3 {[%clk 0:00:11]}  Qf1 {[%clk 0:00:01]} 37. Qd2 {[%clk 0:00:10]}  Kg8 {[%clk 0:00:01]} 38. Qc2 {[%clk 0:00:10]}  Kh8 {[%clk 0:00:01]} 39. Bb1 {[%clk 0:00:11]}  g6 {[%clk 0:00:02]} 40. Qb2 {[%clk 0:00:11]}  Kg7 {[%clk 0:00:02]} 41. Qc2 {[%clk 0:00:11]}  e5 {[%clk 0:00:02]} 42. Nxe5 {[%clk 0:00:10]}  Nh5 {[%clk 0:00:02]} 43. Qb2 {[%clk 0:00:10]}  Kg8 {[%clk 0:00:02]} 44. Ng4 {[%clk 0:00:10]}  f5 {[%clk 0:00:02]} 45. Ba2+ {[%clk 0:00:10]}  Kf8 {[%clk 0:00:02]} 46. Qb4+ {[%clk 0:00:10]}  Kg7 {[%clk 0:00:02]} 47. Qe7+ {[%clk 0:00:10]}  Kh8 {[%clk 0:00:02]} 48. Qf8+ {[%clk 0:00:10]}  Kh7 {[%clk 0:00:03]} 49. Qg8# {[%clk 0:00:11]} 1-0


[Site "https://www.chess.com"]

[Event "Titled Tuesday Blitz October 18 Late 2022"]
[White "Kirillov, Dmitry"]
[Black "Bulgurlu, Okan"]
[WhiteFideId "34180572"]
[BlackFideId "6352316"]
[WhiteElo "2095"]
[BlackElo "2187"]
[Result "0-1"]
[Round "08"]
[TimeControl "180+1"]
[Date "2022.10.19"]
[WhiteClock "0:00:01"]
[BlackClock "0:01:12"]

1. e4 {[%clk 0:03:00]}  c6 {[%clk 0:03:00]} 2. d4 {[%clk 0:03:00]}  d5 {[%clk 0:02:58]} 3. Nc3 {[%clk 0:03:01]}  dxe4 {[%clk 0:02:58]} 4. Nxe4 {[%clk 0:03:02]}  Nf6 {[%clk 0:02:58]} 5. Nxf6+ {[%clk 0:03:03]}  exf6 {[%clk 0:02:59]} 6. c3 {[%clk 0:03:03]}  c5 {[%clk 0:02:57]} 7. Nf3 {[%clk 0:02:58]}  cxd4 {[%clk 0:02:54]} 8. cxd4 {[%clk 0:02:57]}  Bd6 {[%clk 0:02:55]} 9. Be2 {[%clk 0:02:52]}  O-O {[%clk 0:02:56]} 10. O-O {[%clk 0:02:52]}  Nc6 {[%clk 0:02:53]} 11. Be3 {[%clk 0:02:52]}  Bf5 {[%clk 0:02:50]} 12. Rc1 {[%clk 0:02:51]}  Rc8 {[%clk 0:02:47]} 13. a3 {[%clk 0:02:51]}  Re8 {[%clk 0:02:43]} 14. Re1 {[%clk 0:02:49]}  Bb8 {[%clk 0:02:42]} 15. d5 {[%clk 0:02:24]}  Ne5 {[%clk 0:02:39]} 16. Nd4 {[%clk 0:02:09]}  Be4 {[%clk 0:02:34]} 17. Rxc8 {[%clk 0:01:52]}  Qxc8 {[%clk 0:02:32]} 18. Nf3 {[%clk 0:01:45]}  Ng4 {[%clk 0:02:25]} 19. Qd4 {[%clk 0:00:43]}  Be5 {[%clk 0:02:04]} 20. Qxe4 {[%clk 0:00:31]}  Bxh2+ {[%clk 0:02:02]} 21. Nxh2 {[%clk 0:00:31]}  Rxe4 {[%clk 0:02:00]} 22. Nxg4 {[%clk 0:00:25]}  Rxg4 {[%clk 0:02:01]} 23. Rc1 {[%clk 0:00:24]}  Qd7 {[%clk 0:01:55]} 24. Bxg4 {[%clk 0:00:20]}  Qxg4 {[%clk 0:01:54]} 25. d6 {[%clk 0:00:21]}  h5 {[%clk 0:01:51]} 26. f3 {[%clk 0:00:11]}  Qe6 {[%clk 0:01:45]} 27. Bf4 {[%clk 0:00:11]}  g5 {[%clk 0:01:44]} 28. Bd2 {[%clk 0:00:08]}  Qxd6 {[%clk 0:01:43]} 29. Bc3 {[%clk 0:00:06]}  g4 {[%clk 0:01:39]} 30. Kf2 {[%clk 0:00:05]}  Qc5+ {[%clk 0:01:36]} 31. Kg3 {[%clk 0:00:05]}  gxf3 {[%clk 0:01:27]} 32. Kxf3 {[%clk 0:00:06]}  Qf5+ {[%clk 0:01:26]} 33. Ke2 {[%clk 0:00:04]}  Qe4+ {[%clk 0:01:24]} 34. Kd1 {[%clk 0:00:02]}  Qxg2 {[%clk 0:01:22]} 35. Rc2 {[%clk 0:00:03]}  Qf1+ {[%clk 0:01:21]} 36. Kd2 {[%clk 0:00:03]}  h4 {[%clk 0:01:21]} 37. Ke3 {[%clk 0:00:02]}  h3 {[%clk 0:01:21]} 38. Bd4 {[%clk 0:00:01]}  Qe1+ {[%clk 0:01:12]} 0-1


[Site "https://www.chess.com"]